Cogmind - Beta 9.6 *** ADVENTURER MODE // 2020.04.21 @ 20:59:26 Player: BinarySpace Result: Destroyed by G-67 Veteran with Plasma Rifle Performance ------------- Evolutions (6) 3000 Regions Visited (13) 2600 Robots Destroyed (228) 1140 Value Destroyed (9100) 9100 Prototype IDs (34) 680 Alien Tech Used (0) 0 Bonus (2049) 2049 TOTAL SCORE: 18569 Bonus ------- High Alert Combat Kills 658 Follower Combat Kills 843 Aligned with FarCom 300 Met Imprinter 300 Was Imprinted 300 Friendly Fire -352 Cogmind --------- Core Integrity 0/1150 Matter 164/300 Energy 99/100 System Corruption 17% Temperature Cool (12) Movement Core (50) Location -4/Factory Parts ------- > --- POWER (2) -------- (None) > --- PROPULSION (4) --- (None) > --- UTILITY (9) ------ (None) > --- WEAPON (4) ------- (None) > --- INVENTORY (4) ---- Improved Weapon Cycler Layered Heavy Armor Plating Disruptor Cannon Peak State ------------ > --- POWER ------------ Improved Deuterium Engine Neutrino Core > --- PROPULSION ------- Heavy Treads Improved Heavy Treads > --- UTILITY ---------- Humpback Improved Energy Well Advanced Sensor Array Advanced Targeting Computer Advanced Targeting Computer Improved Medium Armor Plating Layered Heavy Armor Plating > --- WEAPON ----------- Proton Cannon Long-range Proton Cannon Tiamat Missile Launcher Tiamat Missile Launcher > --- INVENTORY -------- Improved Treads Armored Treads Medium Treads Medium Treads Improved Medium Treads Improved Medium Treads Improved Medium Treads Advanced Medium Treads Compact Wheel Large Storage Unit Compact Battery Advanced Targeting Computer Improved Weapon Cycler Improved Weapon Cycler Improved Weapon Cycler Layered Heavy Armor Plating Dispersion Rifle Proton Cannon Proton Cannon Proton Cannon Disruptor Cannon Greatsword [Rating: 105] Favorites ----------- Power Improved Deuterium Engine Engine Improved Deuterium Engine Power Core Neutrino Core Propulsion Armored Treads Treads Armored Treads Leg Improved Carbon-fiber Leg Wheel Wheel Hover Unit Cooled Airjet Utility Advanced Terrain Scan Processor Device Coolant Injector Storage Humpback Processor Advanced Terrain Scan Processor Protection Improved Weapon Shielding Weapon Heavy Ion Cannon Energy Gun Improved Medium Laser Energy Cannon Heavy Ion Cannon Ballistic Gun Autogun Launcher Tiamat Missile Launcher Slashing Weapon Axe Build | -11 -10 -10 -10 -9 -8 -7 -7 -7 -7 -6 -6 -5 -4 ------- Run | Scr Mat Min Exi Min Mat Fac Low Low Zio Pro Fac Fac Fac Slots Evolved 12 | . . . . . 4 2 . . . . 2 2 2 Power 1 | . . . . . . . . . . . . . 1 Propulsion 2 | . . . . . . . . . . . . 2 . Utility 7 | . . . . . 4 2 . . . . . . 1 Weapon 2 | . . . . . . . . . . . 2 . . Parts Attached 228 | 7 11 . 1 . 19 62 5 10 2 13 19 45 34 Power 15 | 1 3 . . . 1 5 . 1 . 1 1 1 1 Engine 14 | 1 3 . . . 1 5 . 1 . 1 1 1 . Core 1 | . . . . . . . . . . . . . 1 Reactor . | . . . . . . . . . . . . . . Propulsion 41 | 2 1 . . . 5 13 1 3 1 . 3 7 5 Treads 25 | 1 . . . . 4 4 1 3 . . 2 6 4 Leg 3 | . . . . . . . . . 1 . 1 1 . Wheel 8 | 1 1 . . . 1 4 . . . . . . 1 Hover 5 | . . . . . . 5 . . . . . . . Flight . | . . . . . . . . . . . . . . Utility 84 | 2 2 . 1 . 9 17 2 5 1 12 7 18 8 Device 31 | 1 . . . . 4 5 . 1 . 7 3 7 3 Storage 10 | 1 2 . 1 . . 2 . . . . 1 2 1 Processor 10 | . . . . . 1 1 . 1 . 1 1 4 1 Hackware . | . . . . . . . . . . . . . . Protection 33 | . . . . . 4 9 2 3 1 4 2 5 3 Artifact . | . . . . . . . . . . . . . . Weapon 88 | 2 5 . . . 4 27 2 1 . . 8 19 20 Energy Gun 26 | 2 2 . . . 3 6 . . . . 2 8 3 Energy Cannon 31 | . . . . . 1 9 1 1 . . 2 9 8 Ballistic Gun 8 | . 2 . . . . 6 . . . . . . . Ballistic Cannon . | . . . . . . . . . . . . . . Launcher 14 | . 1 . . . . 1 1 . . . 3 1 7 Special Weapon . | . . . . . . . . . . . . . . Impact Weapon . | . . . . . . . . . . . . . . Slashing Weapon 9 | . . . . . . 5 . . . . 1 1 2 Piercing Weapon . | . . . . . . . . . . . . . . Special Melee Weapon . | . . . . . . . . . . . . . . Unidentified Prototypes 12 | . . . . . 1 5 . . . . . 5 1 Parts Lost 69 | . 5 . . . 2 22 . 5 . 2 6 9 18 Power 5 | . 1 . . . . 2 . . . . 1 . 1 Propulsion 9 | . 1 . . . 1 3 . . . . . 1 3 Utility 26 | . 1 . . . 1 6 . 5 . 1 1 2 9 Weapon 29 | . 2 . . . . 11 . . . 1 4 6 5 Highest Loss Streak 11 | . 3 . . . 1 7 . 4 . 2 4 4 11 Average Slot Usage (%) 82 | . 89 100 91 85 87 80 83 88 65 82 83 90 75 Engine 7 | . 14 14 14 14 9 6 7 7 7 7 6 4 3 Treads 9 | . 14 14 14 14 8 9 7 7 . . 7 22 13 Leg 1 | . . . . . . . . . 4 7 4 . . Wheel 2 | . 14 14 14 14 8 2 3 . . . . . . Device 11 | . . . . . 8 12 15 16 15 25 10 10 7 Storage 8 | . 19 28 19 14 9 12 10 . . . 5 10 9 Processor 7 | . . . . . 2 5 7 7 7 13 13 11 9 Protection 12 | . . . . . 23 12 16 33 14 12 10 4 8 Energy Gun 4 | . 4 . . . 14 2 . . . . 6 12 2 Energy Cannon 8 | . . . . . . 7 11 14 15 13 9 6 11 Ballistic Gun 2 | . 19 28 28 28 3 2 . . . . . . . Naked Turns 47 | . . . . . . . . . . . . . 47 Heaviest Build 171 | 14 45 45 45 18 32 117 116 116 39 43 142 141 171 Greatest Support 145 | 10 10 10 10 10 20 40 70 70 18 18 40 99 145 Greatest Overweight (x) 53 | 1 4 4 4 1 8 11 11 14 12 2 6 2 53 Average Overweight (x) 2 | . 1 4 2 1 1 5 5 2 3 1 3 1 1 Largest Inventory Capacity 44 | 6 16 16 24 24 24 44 44 24 4 4 24 28 24 Average Capacity 22 | 5 9 16 20 24 24 38 32 5 4 4 23 24 22 Most Carried 42 | 4 12 12 19 19 24 42 39 24 4 4 18 24 24 Average Carried 17 | 2 6 12 13 19 23 26 29 4 3 3 12 21 19 Final Capacity 44 | 6 16 16 24 24 24 44 24 4 4 4 24 24 4 Final Carried 38 | 4 12 12 19 19 24 38 24 3 4 4 16 21 4 Class Distribution -------------------- 40% | Hauler-Mutant 19% | Mutant 15% | Messiah-Gunner 15% | Messiah-Mutant 6% | Messiah-Tank Dominant Class ---------------- Mutant | -10/Materials Mutant | -10/Mines Hauler-Mutant | -10/Exiles Hauler-Mutant | -9/Mines Hauler-Mutant | -8/Materials Hauler-Mutant | -7/Factory Hauler-Mutant | -7/Lower Caves Mutant | -7/Lower Caves Messiah-Mutant | -7/Zion Messiah-Mutant | -6/Proximity Caves Messiah-Tank | -6/Factory Messiah-Gunner | -5/Factory Messiah-Gunner | -4/Factory Resources | -11 -10 -10 -10 -9 -8 -7 -7 -7 -7 -6 -6 -5 -4 ----------- Run | Scr Mat Min Exi Min Mat Fac Low Low Zio Pro Fac Fac Fac Matter Collected 3777 | 200 267 22 . . 390 801 14 363 50 157 130 598 785 Remotely . | . . . . . . . . . . . . . . Salvage Created 9946 | 140 338 . . . 1358 2295 64 300 . 245 813 2617 1776 Parts 417 | 12 17 . . . 61 81 7 28 . 16 31 104 60 Haulers Intercepted 7 | . . . . . 1 2 . . . . . 4 . Recyclers Shooed 3 | . . . . . . . . . . . . . 3 Parts Field Recycled . | . . . . . . . . . . . . . . Retrieved Matter . | . . . . . . . . . . . . . . Parts Self-Destructed 47 | . . . . . . . 3 15 . 29 . . . Prevented 3 | . . . . . . . 1 . . 2 . . . Kills | -11 -10 -10 -10 -9 -8 -7 -7 -7 -7 -6 -6 -5 -4 ------- Run | Scr Mat Min Exi Min Mat Fac Low Low Zio Pro Fac Fac Fac Combat Hostiles Destroyed 187 | . 12 . . . 26 51 7 10 . 7 13 35 26 Melee 4 | . . . . . . . . . . . . 3 1 Guns 74 | . 8 . . . 24 31 . . . . 3 7 1 Cannons 72 | . . . . . 1 15 . 10 . 7 4 24 11 AOE 25 | . 4 . . . . . 7 . . . 5 . 9 Classes Destroyed 15 | 2 2 . . . 3 5 . 1 . . 1 . 1 Worker 8 | . . . . . . 2 . . . . . 2 4 Builder 12 | . . . . . . . . . . . 2 . 10 Tunneler 5 | 2 . . . . 1 1 . . . . . . 1 Hauler 7 | . . . . . 1 2 . . . . . 4 . Recycler 7 | 1 . . . . . 1 . . . . 2 . 3 Operator 1 | . . . . . . 1 . . . . . . . Swarmer 32 | . 3 . . . 3 6 7 4 . 2 3 . 4 Grunt 77 | . 9 . . . 15 15 . 1 . 2 8 15 12 Brawler 3 | . . . . . . 1 . . . . . 1 1 Protector 1 | . . . . . . . . . . . . . 1 Sentry 26 | . . . . . 7 7 . 1 . . 1 8 2 Hunter 10 | . . . . . 1 4 . . . . . 3 2 Programmer 18 | . . . . . . 5 . . . . 1 8 4 Master Thief 7 | . . . . . . . . 4 . 3 . . . Assembled 13 | . . . . . . 13 . . . . . . . Thug 1 | . . . . . . . . . . 1 . . . Best Kill Streak 10 | 3 3 . . . 4 10 4 5 . 2 6 7 8 Combat Bots Only 10 | . 3 . . . 4 10 4 5 . 2 5 5 6 Max Kills in Single Turn 6 | 1 2 . . . 1 3 2 1 . 1 5 2 6 Gunslinging . | . . . . . . . . . . . . . . Exploded 5 | . 2 . . . . . 2 . . . 3 . 5 Melee 1 | . . . . . . . . . . . . 1 1 Uniques/NPCs Destroyed . | . . . . . . . . . . . . . . Combat | -11 -10 -10 -10 -9 -8 -7 -7 -7 -7 -6 -6 -5 -4 -------- Run | Scr Mat Min Exi Min Mat Fac Low Low Zio Pro Fac Fac Fac Damage Taken 16500 | . 546 . . . 969 4323 132 1292 . 256 1141 2831 5010 Core 2252 | . 75 . . . 144 403 16 178 . 50 92 130 1164 Absorbed by Shields 40 | . . . . . . . . . . 40 . . . Core Remaining (%) 71 | 100 . . . 70 73 . . . . 7 89 87 . Volleys Fired 469 | 4 31 . . . 80 148 7 52 . 20 20 65 42 Largest 4 | 2 2 . . . 2 2 2 2 . 2 4 4 4 Hottest 369 | 90 90 . . . 116 149 95 95 . 95 304 369 354 Shots Fired 1086 | 8 55 . . . 160 282 6 102 1 39 61 242 130 Gun 547 | 8 52 . . . 159 147 . . . . 24 146 11 Cannon 499 | . . . . . 1 135 1 102 1 39 30 96 94 Launcher 40 | . 3 . . . . . 5 . . . 7 . 25 Special . | . . . . . . . . . . . . . . Kinetic 125 | . 26 . . . 60 39 . . . . . . . Thermal 777 | 4 22 . . . 100 226 1 102 1 39 54 200 28 Explosive 40 | . 3 . . . . . 5 . . . 7 . 25 Electromagnetic 144 | 4 4 . . . . 17 . . . . . 42 77 Robot Hit Streak 76 | 5 37 . . . 76 36 5 12 . 10 22 43 25 Robot Miss Streak 4 | . 1 . . . 1 2 1 3 . 4 1 2 1 Penetration Max . | . . . . . . . . . . . . . . Secondary Targets 4 | . 1 . . . 1 1 . . . . . 1 . Max Gunslinging Chain 1 | . 1 . . . 1 1 . . . . . 1 . Shots Hit Robots 873 | 5 46 . . . 136 231 5 54 . 26 44 219 107 Core Hits 485 | 4 18 . . . 55 128 7 19 . 14 38 102 100 Critical Hits 6 | . . . . . . 1 . . . . 1 . 4 Critical Kills 4 | . . . . . . 1 . . . . 1 . 2 Critical Parts Destroyed 2 | . . . . . . . . . . . . . 2 Melee Attacks 41 | . . . . . . 8 . . . . . 17 16 Impact . | . . . . . . . . . . . . . . Slashing 41 | . . . . . . 8 . . . . . 17 16 Piercing . | . . . . . . . . . . . . . . Sneak Attacks 4 | . . . . . . . . . . . . 1 3 Combat Hostiles . | . . . . . . . . . . . . . . Follow-up Attacks . | . . . . . . . . . . . . . . Damage Inflicted 27245 | 65 850 . . . 2117 5485 784 1592 . 748 1784 6012 7808 Guns 9117 | 65 577 . . . 2094 2835 . . . . 473 2819 254 Cannons 9884 | . . . . . 23 2643 28 1591 . 748 580 2331 1940 Explosions 6670 | . 273 . . . . . 756 . . . 731 246 4664 Melee 1549 | . . . . . . . . . . . . 616 933 Ramming 25 | . . . . . . 7 . 1 . . . . 17 Kinetic 1897 | . 337 . . . 742 818 . . . . . . . Thermal 14936 | 12 267 . . . 1375 4262 28 1591 . 748 1053 4849 751 Explosive 5839 | . 200 . . . . . 756 . . . 731 . 4152 Electromagnetic 2999 | 53 46 . . . . 398 . . . . . 547 1955 Impact . | . . . . . . . . . . . . . . Slashing 1549 | . . . . . . . . . . . . 616 933 Piercing . | . . . . . . . . . . . . . . Highest Corruption 21 | . 1 1 1 1 . 11 11 21 21 . 1 7 17 Average Corruption 6 | . 1 1 1 1 . 5 11 11 21 . 1 4 7 Corruption Purged . | . . . . . . . . . . . . . . Effects 304 | . 1 1 . 1 . 131 23 76 14 . . 36 21 Message Errors 60 | . . 1 . 1 . 28 4 16 4 . . 5 1 Matter Fused 53 | . . . . . . 24 7 7 2 . . 5 8 Heat Flow Errors 34 | . . . . . . 14 2 6 2 . . 10 . Energy Discharges 37 | . 1 . . . . 18 3 8 1 . . 5 1 Parts Rejected 1 | . . . . . . 1 . . . . . . . Data Loss (minor) 40 | . . . . . . 18 3 4 3 . . 5 7 Data Loss (major) 10 | . . . . . . 4 . 5 1 . . . . Misfires 9 | . . . . . . 4 . 4 1 . . . . Alerts 3 | . . . . . . 1 . 2 . . . . . Misdirections 12 | . . . . . . 1 2 9 . . . . . Targeting Errors 36 | . . . . . . 17 . 11 . . . 5 3 Weapon Failures 9 | . . . . . . 1 2 4 . . . 1 1 Overload Shots 4 | . . . . . . 4 . . . . . . . Overflow Damage 843 | . 79 . . . . 90 32 29 . 22 91 107 393 Projectiles 245 | . . . . . . 90 . 29 . 22 23 44 37 Explosions 479 | . 79 . . . . . 32 . . . 68 63 237 Melee 119 | . . . . . . . . . . . . . 119 Knockbacks . | . . . . . . . . . . . . . . Impact . | . . . . . . . . . . . . . . Kinetic . | . . . . . . . . . . . . . . Secondary . | . . . . . . . . . . . . . . Self-Inflicted Damage 1012 | . 131 . . . . . 50 . . . 293 . 538 Shots 30 | . 3 . . . . . 1 . . . 12 . 14 Rammed 11 | . . . . . . 2 . 2 . . . . 7 Targets Rammed 11 | . . . . . . 2 . 2 . . . . 7 Kicked . | . . . . . . . . . . . . . . Crushed . | . . . . . . . . . . . . . . Highest Temperature 693 | 90 228 . . . 297 466 199 195 263 18 693 507 487 Average Temperature 115 | 41 63 . . . 84 84 99 90 119 9 193 139 150 Received Heat Transfer 4065 | . 252 . . . 549 1262 . 393 . 79 276 756 498 Effects 33 | . 2 . . . . 5 . . . . 11 5 10 Shutdowns 5 | . . . . . . 1 . . . . 1 . 3 Energy Bleed 7 | . . . . . . 2 . . . . 3 1 1 Interference 11 | . 2 . . . . . . . . . 3 1 5 Matter Decay 4 | . . . . . . 2 . . . . 1 1 . Short Circuit 2 | . . . . . . . . . . . . 1 1 Damage (minor) 2 | . . . . . . . . . . . 1 1 . Damage (major) 2 | . . . . . . . . . . . 2 . . Siege Activations 1 | . . . . . . . . . . . . . 1 Total Turns 2 | . . . . . . . . . . . . . 2 Longest Duration 2 | . . . . . . . . . . . . . 2 Robots Corrupted 5 | . . . . . . 1 . . . . . . 4 Combat Hostiles 5 | . . . . . . 1 . . . . . . 4 Parts Fried 20 | . . . . . . 4 . . . . . 1 15 Impact Corruptions 1 | . . . . . . . . . . . . . 1 Robots Melted 8 | . . . . . 1 4 . . . . 1 2 . Combat Hostiles 7 | . . . . . 1 4 . . . . 1 1 . Parts Melted 48 | . . . . . 3 15 . 2 . 2 2 24 . Heat Transferred 23993 | 37 609 . . . 2960 7501 37 2183 . 1036 1645 7315 670 Parts Sabotaged 3 | . . . . . . . . . . . . . 3 Parts Stolen 17 | . . . . . . . 1 13 . 3 . . . Parts Stripped . | . . . . . . . . . . . . . . Power Chain Reactions 2 | . 1 . . . . . . . . . . . 1 Missiles Intercepted . | . . . . . . . . . . . . . . Alert | -11 -10 -10 -10 -9 -8 -7 -7 -7 -7 -6 -6 -5 -4 ------- Run | Scr Mat Min Exi Min Mat Fac Low Low Zio Pro Fac Fac Fac Peak Influence 1226 | 15 216 19 . . 328 538 . . . . 596 608 1226 Average Influence 182 | 3 78 19 . . 164 72 . . . . 178 248 647 Maximum Alert Level 4 | . 1 . . . 1 2 . . . . 2 2 4 Low Security (%) 65 | 100 95 100 . 100 57 92 . . . . 67 37 . Level 1 23 | . 4 . . . 42 6 . . . . 16 52 23 Level 2 7 | . . . . . . 1 . . . . 16 10 37 Level 3 2 | . . . . . . . . . . . . . 31 Level 4 . | . . . . . . . . . . . . . 7 Level 5 . | . . . . . . . . . . . . . . High Security . | . . . . . . . . . . . . . . Max Security . | . . . . . . . . . . . . . . Squads Dispatched 49 | . 1 . . . 3 17 . . . . 9 11 8 Investigation 12 | . 1 . . . 1 5 . . . . 2 2 1 Extermination 12 | . . . . . . 5 . . . . 2 3 2 Reinforcement 13 | . . . . . 2 4 . . . . 2 3 2 Assault 5 | . . . . . . . . . . . 2 . 3 Garrison 7 | . . . . . . 3 . . . . 1 3 . Intercept . | . . . . . . . . . . . . . . Construction Impeded 5 | . . . . . . . . . . . 2 1 2 Haulers Reinforced 2 | . . . . . . 1 . . . . . 1 . Stealth | -11 -10 -10 -10 -9 -8 -7 -7 -7 -7 -6 -6 -5 -4 --------- Run | Scr Mat Min Exi Min Mat Fac Low Low Zio Pro Fac Fac Fac Distress Signals 10 | . 1 . . . 3 1 . . . . . 2 3 Communications Jammed . | . . . . . . . . . . . . . . Distress Signals . | . . . . . . . . . . . . . . Times Spotted 345 | . 27 . . . 47 73 8 25 . 23 29 53 60 Peak Tracking Total 19 | . 4 . . . 4 10 4 5 . 3 5 5 19 Tactical Retreats 18 | . 2 . . . 2 6 . . . . 1 3 4 Traps | -11 -10 -10 -10 -9 -8 -7 -7 -7 -7 -6 -6 -5 -4 ------- Run | Scr Mat Min Exi Min Mat Fac Low Low Zio Pro Fac Fac Fac Traps Triggered 15 | . 4 . . . 1 6 . . . . 2 . 2 Indirectly 1 | . . . . . . . . . . . . . 1 Trap Hack Attempts . | . . . . . . . . . . . . . . Triggered . | . . . . . . . . . . . . . . Disarmed . | . . . . . . . . . . . . . . Reprogrammed . | . . . . . . . . . . . . . . Reused . | . . . . . . . . . . . . . . Traps Extracted . | . . . . . . . . . . . . . . Installed . | . . . . . . . . . . . . . . Triggered 1 | . . . . . . . 1 . . . . . . Machines | -11 -10 -10 -10 -9 -8 -7 -7 -7 -7 -6 -6 -5 -4 ---------- Run | Scr Mat Min Exi Min Mat Fac Low Low Zio Pro Fac Fac Fac Machines Disabled 32 | . 3 . . . . 1 . . . . 9 7 12 Max in Single Turn 3 | . 2 . . . . 1 . . . . 3 3 3 Garrison Access 3 | . . . . . . 1 . . . . 1 . 1 Machines Sabotaged . | . . . . . . . . . . . . . . Garrisons Compromised 1 | . . . . . . 1 . . . . . . . Overloaded Fab Kills . | . . . . . . . . . . . . . . Fab Network Shutdowns 2 | . . . . . . 1 . . . . . 1 . Hacking | -11 -10 -10 -10 -9 -8 -7 -7 -7 -7 -6 -6 -5 -4 --------- Run | Scr Mat Min Exi Min Mat Fac Low Low Zio Pro Fac Fac Fac Machines Accessed 38 | . 6 . 1 . 6 15 . 1 . . 3 5 1 Terminals 14 | . 5 . . . 4 5 . . . . . . . Fabricators 9 | . . . . . . 4 . . . . 2 3 . Repair Stations 8 | . 1 . . . 1 3 . . . . . 2 1 Recycling Units . | . . . . . . . . . . . . . . Scanalyzers 3 | . . . . . 1 2 . . . . . . . Garrison Access 2 | . . . . . . 1 . . . . 1 . . Total Hacks 125 | . 15 . 1 . 23 48 . 1 . . 14 22 1 Successful 85 | . 12 . 1 . 17 34 . 1 . . 3 17 . Failed 40 | . 3 . . . 6 14 . . . . 11 5 1 Catastrophic 2 | . . . . . 1 1 . . . . . . . Database Lockouts . | . . . . . . . . . . . . . . Manual 30 | . 7 . 1 . 4 8 . . 2 . 1 . 7 Terminals 28 | . 11 . . . 7 10 . . . . . . . Fabricators 25 | . . . . . . 9 . . . . 8 8 . Repair Stations 32 | . 4 . . . 2 11 . . . . . 14 1 Recycling Units . | . . . . . . . . . . . . . . Scanalyzers 31 | . . . . . 14 17 . . . . . . . Garrison Access 7 | . . . . . . 1 . . . . 6 . . Terminal Hacks 12 | . 7 . 1 . 1 2 . 1 . . . . . Part Schematic 2 | . 1 . . . . 1 . . . . . . . Open Door 1 | . . . . . . . . 1 . . . . . Branch Access Points 1 | . 1 . . . . . . . . . . . . Unreport Threat 2 | . 1 . . . . 1 . . . . . . . Locate Traps 3 | . 3 . . . . . . . . . . . . Hauler Manifests 2 | . 1 . . . 1 . . . . . . . . EX-Prototype ID Bank 1 | . . . 1 . . . . . . . . . . Fabricator Hacks 10 | . . . . . . 4 . . . . 3 3 . Load Schematic 6 | . . . . . . 2 . . . . 2 2 . Build 4 | . . . . . . 2 . . . . 1 1 . Repair Station Hacks 30 | . 4 . . . 2 10 . . . . . 14 . Scan Component 15 | . 2 . . . 1 5 . . . . . 7 . Repair 15 | . 2 . . . 1 5 . . . . . 7 . Recycling Unit Hacks . | . . . . . . . . . . . . . . Scanalyzer 31 | . . . . . 14 17 . . . . . . . Insert Component 15 | . . . . . 7 8 . . . . . . . Analyze 16 | . . . . . 7 9 . . . . . . . Garrison Access Hacks 1 | . . . . . . 1 . . . . . . . Seal Access 1 | . . . . . . 1 . . . . . . . Unauthorized Hacks 1 | . 1 . . . . . . . . . . . . Terminals 1 | . 1 . . . . . . . . . . . . Track 1 | . 1 . . . . . . . . . . . . Fabricators . | . . . . . . . . . . . . . . Repair Stations . | . . . . . . . . . . . . . . Recycling Units . | . . . . . . . . . . . . . . Scanalyzers . | . . . . . . . . . . . . . . Garrison Access . | . . . . . . . . . . . . . . Data Cores Recovered 1 | . . . . . . 1 . . . . . . . Used . | . . . . . . . . . . . . . . Hacking Detections 29 | . 5 . . . 4 13 . . . . 3 3 1 Full Trace Events 10 | . . . . . 1 5 . . . . 2 2 . Feedback Events . | . . . . . . . . . . . . . . Feedback Blocked . | . . . . . . . . . . . . . . Robot Schematics Acquired 5 | . . . . . . . . . . . . . 5 Robots Built . | . . . . . . . . . . . . . . Matter . | . . . . . . . . . . . . . . Time . | . . . . . . . . . . . . . . Total Robot Build Rating . | . . . . . . . . . . . . . . Part Schematics Acquired 16 | . 1 . . . 7 8 . . . . . . . Parts Built 6 | . . . . . . 4 . . . . 1 1 . Matter 628 | . . . . . . 424 . . . . 102 102 . Time 182 | . . . . . . 106 . . . . 25 51 . Total Part Build Rating 26 | . . . . . . 24 . . . . 1 1 . Parts Repaired 14 | . 2 . . . 1 4 . . . . . 7 . Time 640 | . 52 . . . 26 228 . . . . . 334 . Parts Recycled . | . . . . . . . . . . . . . . Recycled Matter . | . . . . . . . . . . . . . . Retrieved Matter . | . . . . . . . . . . . . . . Retrieved Components . | . . . . . . . . . . . . . . Parts Scanalyzed 14 | . . . . . 7 7 . . . . . . . Part Schematics Acquired 14 | . . . . . 7 7 . . . . . . . Parts Damaged 1 | . . . . . . 1 . . . . . . . Bothacking | -11 -10 -10 -10 -9 -8 -7 -7 -7 -7 -6 -6 -5 -4 ------------ Run | Scr Mat Min Exi Min Mat Fac Low Low Zio Pro Fac Fac Fac Used RIF Installer . | . . . . . . . . . . . . . . Robots Hacked . | . . . . . . . . . . . . . . Non-combat . | . . . . . . . . . . . . . . Combat . | . . . . . . . . . . . . . . Robot Hacks Applied . | . . . . . . . . . . . . . . Relay Couplers Released 2 | . . . . . . . . . . . 2 . . Machine Destruction 2 | . . . . . . . . . . . 2 . . Robots Rewired . | . . . . . . . . . . . . . . Allies Hacked . | . . . . . . . . . . . . . . Hacks Repelled . | . . . . . . . . . . . . . . Allies | -11 -10 -10 -10 -9 -8 -7 -7 -7 -7 -6 -6 -5 -4 -------- Run | Scr Mat Min Exi Min Mat Fac Low Low Zio Pro Fac Fac Fac Total Allies 13 | . . . . . . . . 1 12 . . . . Largest Group 12 | . . . . . . . . 1 12 9 4 . . Highest-Rated Group 504 | . . . . . . . . 113 504 410 204 . . Highest-Rated Ally 113 | . . . . . . . . 113 94 94 94 . . Total Orders . | . . . . . . . . . . . . . . Ally Attacks 226 | . . . . . . . . . . 176 50 . . Total Damage 4918 | . . . . . . . . . . 3564 1354 . . Kills 30 | . . . . . . . . . . 20 10 . . Allies Corrupted . | . . . . . . . . . . . . . . Allies Melted . | . . . . . . . . . . . . . . Intel | -11 -10 -10 -10 -9 -8 -7 -7 -7 -7 -6 -6 -5 -4 ------- Run | Scr Mat Min Exi Min Mat Fac Low Low Zio Pro Fac Fac Fac Robot Analysis Total . | . . . . . . . . . . . . . . Derelict Logs Recovered 6 | . . 2 . . . . 1 . 1 2 . . . Drone Launches . | . . . . . . . . . . . . . . Drone Recoveries . | . . . . . . . . . . . . . . Zionite Intel Received 1 | . . . . . . . . . . . . . 1 Unaware Schematics 1 | . . . . . . . . . . . . . 1 Exploration | -11 -10 -10 -10 -9 -8 -7 -7 -7 -7 -6 -6 -5 -4 ------------- Run | Scr Mat Min Exi Min Mat Fac Low Low Zio Pro Fac Fac Fac Turns Passed 18912 | 70 1059 116 335 51 1949 4950 498 1480 1877 1220 1437 2665 1205 Spaces Moved 8646 | 49 794 97 318 40 1152 1908 255 516 800 693 551 974 499 Core 271 | 1 . . . . 1 . . 74 100 . . . 95 Treads 3552 | . . . . . 265 1008 152 442 . . 307 974 404 Legs 1637 | . . . . . . . . . 700 693 244 . . Wheels 3139 | 48 794 97 318 40 886 853 103 . . . . . . Hover 47 | . . . . . . 47 . . . . . . . Flight . | . . . . . . . . . . . . . . Fastest Speed 50 | 50 80 120 90 90 90 130 180 160 180 150 180 182 50 Average Speed 176 | 87 98 120 100 90 120 201 183 248 233 164 235 184 168 Slowest Speed 2700 | 90 120 120 120 90 450 310 190 750 650 180 300 206 2700 Overloaded Moves . | . . . . . . . . . . . . . . Propulsion Burnouts . | . . . . . . . . . . . . . . Robots Hopped . | . . . . . . . . . . . . . . Cave-ins Triggered 3 | . . . . . . . . . . . . 1 2 Exploration Rate (%) 47 | 3 95 33 75 9 68 47 56 59 81 81 20 27 13 Regions Visited 13 Branch Regions 7 Pre-discovered Areas 2 | . . 1 . . . . . . 1 . . . . Known Exits Taken 2 | . 1 . . . . . 1 . . . . . . Unknown Exits Taken 11 | 1 . 1 1 1 1 1 . 1 1 1 1 1 . Scrap Searched 6 | . . 1 . . . . . 2 2 1 . . . Spaces Dug 17 | . . . . . . 8 . . . . . 7 2 Terrain Destroyed 673 | . 32 . . . . 12 76 14 . 3 194 48 294 Melee 16 | . . . . . . 7 . . . . . 7 2 Projectile 47 | . . . . . . 5 . 14 . 3 6 13 6 AOE 610 | . 32 . . . . . 76 . . . 188 28 286 Actions | -11 -10 -10 -10 -9 -8 -7 -7 -7 -7 -6 -6 -5 -4 --------- Run | Scr Mat Min Exi Min Mat Fac Low Low Zio Pro Fac Fac Fac Total 11271 | 64 1020 96 332 54 1569 2705 277 606 808 734 644 1655 707 Wait 1520 | . 163 . . 15 278 486 . 12 . . 27 471 68 Move 8633 | 48 793 96 317 39 1151 1907 254 515 799 692 550 973 499 Hop . | . . . . . . . . . . . . . . Pick Up 219 | 5 16 . 12 . 20 59 7 10 4 1 18 41 26 Fast Attach 111 | 6 5 . 1 . 12 22 . 9 2 12 7 25 10 Attach 68 | 1 4 . . . 3 22 3 . . . 8 15 12 Detach 9 | . . . . . . 3 . . . . 2 . 4 Swap 49 | . 2 . . . 4 18 2 1 . 1 4 5 12 Drop 137 | . 6 . 2 . 21 28 4 5 3 8 6 43 11 Fire 469 | 4 31 . . . 80 148 7 52 . 20 20 65 42 Melee 41 | . . . . . . 8 . . . . . 17 16 Ram 4 | . . . . . . . . 2 . . . . 2 Kick . | . . . . . . . . . . . . . . Crush 7 | . . . . . . 2 . . . . . . 5 Escape Stasis 4 | . . . . . . 2 . . . . 2 . . Rewire . | . . . . . . . . . . . . . . Trap . | . . . . . . . . . . . . . . Miscellaneous . | . . . . . . . . . . . . . . Route ------- -11/Scrapyard -10/Materials (discovered 4 exits: [*Mat x3] / *Min) -10/Mines (discovered 2 exits: [*Mat] / *Exi) -10/Exiles -9/Mines -8/Materials (discovered 2 exits: *Fac x2) -7/Factory (discovered 3 exits: *Fac x2 / [*Low]) -7/Lower Caves -7/Lower Caves -7/Zion -6/Proximity Caves -6/Factory (discovered 2 exits: *Fac x2) -5/Factory -4/Factory History --------- Turn | Location | Event 23 | -11/Scrapyard | Discovered new exit (range 16) 71 | -11/Scrapyard | Entered Materials 153 | -10/Materials | Lost 3 parts (1p1u1w) 262 | -10/Materials | Discovered new exit (range 15) 290 | -10/Materials | Identified exit to Mines 307 | -10/Materials | Build established: Mutant 354 | -10/Materials | Repaired Sml. Laser 381 | -10/Materials | Repaired Lgt. Ion Engine 481 | -10/Materials | Discovered new exit (range 4) 722 | -10/Materials | Discovered new exit (range 16) 1130 | -10/Materials | Entered Mines 1151 | -10/Mines | Learned 2 Materials zone layouts 1176 | -10/Mines | Discovered new exit (range 10) 1236 | -10/Mines | Learned location of Zion (-7) 1241 | -10/Mines | Deemed a non-threat by the Exiles lab entrance 1241 | -10/Mines | Discovered new exit (range 5) 1246 | -10/Mines | Entered Exiles 1276 | -10/Exiles | Met 8R-AWN 1296 | -10/Exiles | Met EX-HEX 1333 | -10/Exiles | Met EX-BIN 1347 | -10/Exiles | Aligned with FarCom system 1348 | -10/Exiles | Given EX-Vault access code 1377 | -10/Exiles | Opened EX-Vault 1386 | -10/Exiles | Found Lightpack 2.0 1406 | -10/Exiles | Found AWS/Thermal 1408 | -10/Exiles | Found Chronowheel 1426 | -10/Exiles | Warned to stay clear of 0b10 Research branches 1456 | -10/Exiles | Met EX-DEC 1486 | -10/Exiles | Visited The Gauntlet 1571 | -10/Exiles | Discovered new exit (range 12) 1581 | -10/Exiles | Stole three prototypes: Lightpack 2.0, Chronowheel, AWS/Thermal 1581 | -10/Exiles | Entered Mines 1588 | -9/Mines | Received a Rocket Launcher from a helpful Derelict 1615 | -9/Mines | Discovered new exit (range 12) 1632 | -9/Mines | Entered Materials 1632 | -8/Materials | Evolved 4 slots: Utility x4 1673 | -8/Materials | Repaired Lgt. Treads 1694 | -8/Materials | Build established: Hauler-Mutant 2327 | -8/Materials | Discovered new exit (range 15) 3300 | -8/Materials | Discovered new exit (range 12) 3581 | -8/Materials | Entered Factory 3581 | -7/Factory | Evolved 2 slots: Utility x2 3583 | -7/Factory | FarCom data flow suspended 4819 | -7/Factory | Repaired Imp. Weapon Shielding 4870 | -7/Factory | Discovered new exit (range 20) 4921 | -7/Factory | Garrison activated, responded to threat 5125 | -7/Factory | Lost 3 parts (1n2w) 5872 | -7/Factory | Lost 3 parts (1p1u1w) 6897 | -7/Factory | Repaired Imp. Weapon Shielding 7024 | -7/Factory | Core integrity fell below 50% 7050 | -7/Factory | Destroyed 10 combat bots 7056 | -7/Factory | Lost 7 parts (1n4u2w) 7794 | -7/Factory | Discovered new exit (range 9) 7822 | -7/Factory | Found Prototype Launcher 7822 | -7/Factory | Identified Rocket Array 8096 | -7/Factory | System corruption reached 10% 8167 | -7/Factory | Fabricated Arm. Medium Treads (x2) 8304 | -7/Factory | Local fabrication network quarantined 8319 | -7/Factory | Fabricated Hvy. Treads (x2) 8356 | -7/Factory | Discovered new exit (range 19) 8425 | -7/Factory | Repaired Cld. Particle Cannon 8464 | -7/Factory | Repaired Imp. Light Armor Plating 8531 | -7/Factory | Entered Lower Caves 8735 | -7/Lower Caves | Spotted 86-IE3(f) 8736 | -7/Lower Caves | Encountered a Master Thief 8738 | -7/Lower Caves | Lightpack 2.0 stolen by Master Thief 8929 | -7/Lower Caves | Encountered a Warlord checkpoint 8968 | -7/Lower Caves | Identified exit to Lower Caves 9029 | -7/Lower Caves | Entered another Lower Caves area 9034 | -7/Lower Caves | Encountered a Warlord checkpoint 9151 | -7/Lower Caves | Attracted the attention of an 0b10 checkpoint 9200 | -7/Lower Caves | Spotted CD-EUJ(f) 9202 | -7/Lower Caves | Encountered a Master Thief 9202 | -7/Lower Caves | Spotted GH-NOP(f) 9203 | -7/Lower Caves | Encountered a Master Thief 9204 | -7/Lower Caves | AWS/Thermal stolen by Master Thief 9204 | -7/Lower Caves | Destroyed CD-EUJ(f) 9209 | -7/Lower Caves | Hvy. Treads stolen by Master Thief 9231 | -7/Lower Caves | Spotted XN-ZLY(f) 9232 | -7/Lower Caves | Encountered a Master Thief 9237 | -7/Lower Caves | Spotted SK-8Y3(f) 9238 | -7/Lower Caves | Encountered a Master Thief 9238 | -7/Lower Caves | Hvy. Treads stolen by Master Thief 9249 | -7/Lower Caves | Hvy. Ion Cannon stolen by Master Thief 9412 | -7/Lower Caves | Spotted H2-6SR(f) 9414 | -7/Lower Caves | Encountered a Master Thief 9416 | -7/Lower Caves | Destroyed H2-6SR(f) 9432 | -7/Lower Caves | Spotted UV-WDY(f) 9433 | -7/Lower Caves | Encountered a Master Thief 9442 | -7/Lower Caves | AWS/Thermal stolen by Master Thief 9475 | -7/Lower Caves | Build established: Mutant 9570 | -7/Lower Caves | Spotted FS-RKS(f) 9571 | -7/Lower Caves | Encountered a Master Thief 9578 | -7/Lower Caves | Master Tearclaws stolen by Master Thief 9580 | -7/Lower Caves | Destroyed FS-RKS(f) 9644 | -7/Lower Caves | Spotted 7G-6BA(f) 9645 | -7/Lower Caves | Encountered a Master Thief 9648 | -7/Lower Caves | Master Tearclaws stolen by Master Thief 9737 | -7/Lower Caves | Spotted IJ-ZGC(f) 9738 | -7/Lower Caves | Encountered a Master Thief 9738 | -7/Lower Caves | Spotted 2C-RSD(f) 9739 | -7/Lower Caves | Encountered a Master Thief 9740 | -7/Lower Caves | Master Tearclaws stolen by Master Thief 9740 | -7/Lower Caves | Arm. Medium Treads stolen by Master Thief 9740 | -7/Lower Caves | Destroyed IJ-ZGC(f) 9832 | -7/Lower Caves | Spotted JJ-ROT(f) 9832 | -7/Lower Caves | Nanoactuators stolen by Master Thief 9833 | -7/Lower Caves | Encountered a Master Thief 9876 | -7/Lower Caves | Spotted 76-GWD(f) 9877 | -7/Lower Caves | Encountered a Master Thief 9882 | -7/Lower Caves | Arm. Medium Treads stolen by Master Thief 9960 | -7/Lower Caves | Discovered new exit (range 16) 10024 | -7/Lower Caves | Spotted 2G-F5P(f) 10025 | -7/Lower Caves | Encountered a Master Thief 10026 | -7/Lower Caves | Spotted AC-3LH(f) 10027 | -7/Lower Caves | Encountered a Master Thief 10028 | -7/Lower Caves | Arm. Medium Treads stolen by Master Thief 10032 | -7/Lower Caves | Lgt. Fission Core stolen by Master Thief 10502 | -7/Lower Caves | Core integrity fell below 20% 10509 | -7/Lower Caves | Entered Zion 10540 | -7/Zion | Lost 4 parts (4u) 10669 | -7/Zion | Learned location of Warlord (-4) 10854 | -7/Zion | System corruption cleaned by Quarantine Array 11401 | -7/Zion | Imprinted 11404 | -7/Zion | Declared Zion's savior 11500 | -7/Zion | Learned Factory stockpile data 11552 | -7/Zion | Given A8's code to call for help 11651 | -7/Zion | Received a hallucinogenic algorithm 11654 | -7/Zion | Enhanced Grunt warped into view, answering call for help 11656 | -7/Zion | Enhanced Grunt warped into view, answering call for help 11694 | -7/Zion | Build established: Messiah-Mutant 11917 | -7/Zion | Gained Derelict followers 12079 | -7/Zion | Found Rocket Array 12248 | -7/Zion | Discovered new exit (range 16) 12386 | -7/Zion | Entered Proximity Caves 12386 | -6/Proximity Caves | Accompanied by 9 allies 12487 | -6/Proximity Caves | Learned Factory stockpile data 12490 | -6/Proximity Caves | Attracted the attention of an 0b10 checkpoint 12528 | -6/Proximity Caves | Spotted 8T-1HH(f) 12529 | -6/Proximity Caves | Encountered a Master Thief 12530 | -6/Proximity Caves | Spotted WI-XXE(f) 12531 | -6/Proximity Caves | Encountered a Master Thief 12531 | -6/Proximity Caves | Allies destroyed 8T-1HH(f) 12532 | -6/Proximity Caves | Tactical Coordination Suite stolen by Master Thief 12536 | -6/Proximity Caves | Learned Factory emergency access door positions 12591 | -6/Proximity Caves | Spotted KD-21M(f) 12592 | -6/Proximity Caves | Encountered a Master Thief 12592 | -6/Proximity Caves | Imp. Weapon Shielding stolen by Master Thief 13054 | -6/Proximity Caves | Spotted IC-96A(f) 13054 | -6/Proximity Caves | Spotted LM-EIQ(f) 13055 | -6/Proximity Caves | Encountered a Master Thief 13055 | -6/Proximity Caves | Encountered a Master Thief 13062 | -6/Proximity Caves | Destroyed LM-EIQ(f) 13081 | -6/Proximity Caves | Destroyed IC-96A(f) 13188 | -6/Proximity Caves | Spotted B9-XKV(f) 13189 | -6/Proximity Caves | Encountered a Master Thief 13191 | -6/Proximity Caves | Allies destroyed B9-XKV(f) 13193 | -6/Proximity Caves | Spotted H1-4WV(f) 13194 | -6/Proximity Caves | Encountered a Master Thief 13199 | -6/Proximity Caves | Mak. Cloaking Device stolen by Master Thief 13200 | -6/Proximity Caves | Allies destroyed H1-4WV(f) 13215 | -6/Proximity Caves | Spotted SG-X1S(f) 13216 | -6/Proximity Caves | Encountered a Master Thief 13222 | -6/Proximity Caves | Allies destroyed SG-X1S(f) 13317 | -6/Proximity Caves | Spotted AM-55D(f) 13318 | -6/Proximity Caves | Encountered a Master Thief 13323 | -6/Proximity Caves | Allies destroyed AM-55D(f) 13388 | -6/Proximity Caves | Spotted SN-81R(f) 13389 | -6/Proximity Caves | Encountered a Master Thief 13392 | -6/Proximity Caves | Spotted QG-MJ2(f) 13393 | -6/Proximity Caves | Encountered a Master Thief 13395 | -6/Proximity Caves | Destroyed SN-81R(f) 13397 | -6/Proximity Caves | Allies destroyed QG-MJ2(f) 13577 | -6/Proximity Caves | Discovered new exit (range 9) 13606 | -6/Proximity Caves | Entered Factory 13606 | -6/Factory | Accompanied by 4 allies 13606 | -6/Factory | Evolved 2 slots: Weapon x2 13675 | -6/Factory | Fabricated Humpback (x1) 13908 | -6/Factory | Build established: Messiah-Gladiator 14053 | -6/Factory | Discovered new exit (range 21) 14289 | -6/Factory | Build established: Messiah-Tank 14838 | -6/Factory | Lost 4 parts (1p1u2w) 14956 | -6/Factory | Discovered new exit (range 10) 15006 | -6/Factory | First assault squad dispatched 15043 | -6/Factory | Entered another Factory area 15043 | -5/Factory | Evolved 2 slots: Propulsion x2 15625 | -5/Factory | Build established: Messiah-Gunner 15693 | -5/Factory | Repaired Rocket Array 15744 | -5/Factory | Repaired Hvy. Plasma Cannon 15784 | -5/Factory | Repaired Arm. Treads 15836 | -5/Factory | Repaired Lyr. Medium Armor Plating 15921 | -5/Factory | Crushed by falling debris 16128 | -5/Factory | Garrison activated, responded to threat 16435 | -5/Factory | Repaired Med. Treads 16474 | -5/Factory | Repaired Arm. Treads 16520 | -5/Factory | Repaired Imp. Deuterium Engine 16773 | -5/Factory | Terminal network hard line cut 16788 | -5/Factory | Discovered new exit (range 7) 17165 | -5/Factory | Fabricated Humpback (x1) 17546 | -5/Factory | Local fabrication network quarantined 17589 | -5/Factory | Lost 4 parts (1u3w) 17708 | -5/Factory | Entered another Factory area 17708 | -4/Factory | Evolved 2 slots: Power x1, Utility x1 18180 | -4/Factory | Retrieved Zion intel report: Unaware Schematics 18458 | -4/Factory | First assault squad dispatched 18723 | -4/Factory | Crushed by falling debris 18769 | -4/Factory | Crushed by falling debris 18842 | -4/Factory | System corruption reached 10% 18863 | -4/Factory | Core integrity fell below 50% 18897 | -4/Factory | Lost 11 parts (2n6u3w) 18904 | -4/Factory | Core integrity fell below 20% 18913 | -4/Factory | Destroyed by G-67 Veteran with Plasma Rifle Last Messages --------------- 18866_ Adv. Targeting Computer destroyed. 18866_ Slammed into L-61 Swordsman. 18867_ K-01 Serf collects debris. 18868_ U-05 Engineer builds a Wall. 18868_ R-10 Processor collects Com. Wheel. 18869_ R-10 Processor collects Imp. Treads. 18870_ K-01 Serf collects debris. 18870_ U-05 Engineer builds a Wall. 18870_ Door malfunctions. 18871_ Slug penetrates Wall. 18871_ Acquired 111 matter. 18880_ System corrupted: Component data lost. 18895_ System corrupted: Matter fused (-7). 18903_ U-05 Engineer lays Concrete. 18906_ K-01 Serf collects debris. 18908_ U-05 Engineer lays Concrete. 18910_ System corrupted: Matter fused (-10). 18911_ U-05 Engineer lays Concrete. [Achievement: Just Browsing] [Achievement: Achiever] Map ----- +----------------------------------------------------+ | ?????????????# + " " " #????????????? | | ?????????????# ###### " " " #????????????? | | ?????????????# #????# " " " #????????????? | | ?????????????# #????# " " " #????????????? | | ?????????????# #????# " " " #????????????? | | ????#+######## ###### " " " !#????????????? | | ????# [!! * # " " " ########?????? | | ????# [!! / " " " # #?????? | | ????# !!! """ "" "" # " " " # #?????? | | ????# """ "" # # #?????? | | ????# """ "" ####+##### #?????? | | ????# = gg g ##### #?????? | | ????# """ """ "" gg g # #?????? | | ????# """ """ "" ! # #?????? | | ????+ """ """ "" g p + #?????? | | ????# l # #?????? | | ##### # ! #?????? | | ### #?????? | | ################# # ## #?# #?????? | | ]] #??????? # ## #?# #?????? | | ] #???????"""?""" g ##+### ] #?????? | | #???? ?"""?""" ; k ########?????? | | != #### """??"" # u #????????????? | | ! +? # #????????????? | | ! =####??###+### # ! #????????????? | | #?????# #!# #######@###########????????????? | | #???### #=# #???????????????? | | ######### % ## #???????????????? | | # / *% + u #???????????????? | | + # #* ## % u #???????????????? | | # % !!# # #???????????????? | | # =!#%# #???????????????? | | / !%#=##k###############???????????????? | | ## # =]=# # ## # #??????????????????? | | # ######!]=#%# # # ###??????????????????? | | # #????##]=# # # # #???????????????????? | | # #??#######!###### #???????????????????? | | !# ### #???????????????????? | | ## #???????????????????? | | ?# #???????????????????? | | ? #???????????????????? | | ?################# #???????????????????? | | ??????????????#### ### #???????????????????? | | ?????????????????# ??# #???????????????????? | | ?????????????????# ??# #???????????????????? | | ?????????????????# ??# #???????????????????? | | ????????????????? ??##+######???????????????????? | | ????????????????? |??? ????????????????????????? | | ????????????????? ??? ????????????????????????? | | ?????????????????] ??? ????????????????????????? | +----------------------------------------------------+ Best States ------------- Heat Dissipation 81 Coolant Potential 80 Energy Generation 30 Energy Capacity 1105 Matter Stores 300 Matter Capacity 300 Sight Range 22 Robot Scan Range 16 Terrain Scan Range 20 Terrain Scan Density 210 Cloak Strength 3 Armor Coverage 900 Resistance: KI 40 Resistance: TH 20 Resistance: EX 20 Resistance: EM 20 Resistance: I 20 Resistance: S 20 Resistance: P 20 Power Shielding 66 Propulsion Shielding 66 Weapon Shielding 66 Weapon Cycling 20 Melee Speed Boost 30 Evasion (%) 50 Targeting Accuracy 16 Core Analysis 8 Recoil Reduction 4 Particle Charging 15 Offensive Hacking 10 Item Schematics ----------------- Hcp. Storage Unit | -10/Materials | Hacked Imp. Weapon Shielding | -8/Materials | Scanalyzed Hrd. Heavy Armor Plating | -8/Materials | Scanalyzed Adv. Terrain Scanner | -8/Materials | Scanalyzed Adv. Treads | -8/Materials | Scanalyzed Imp. Medium Laser | -8/Materials | Scanalyzed Imp. Cooling System | -8/Materials | Scanalyzed Humpback | -8/Materials | Scanalyzed Hvy. Treads | -7/Factory | Hacked Imp. Light Armor Plating | -7/Factory | Scanalyzed Imp. Deuterium Engine | -7/Factory | Scanalyzed Mic. Nuclear Core | -7/Factory | Scanalyzed Arm. Treads | -7/Factory | Scanalyzed Cld. Particle Cannon | -7/Factory | Scanalyzed Adv. Terrain Scan Processor | -7/Factory | Scanalyzed Lyr. Light Armor Plating | -7/Factory | Scanalyzed Robot Schematics ------------------ W-44 Eye | -4/Factory | Z-intel X-72 Disruptor | -4/Factory | Z-intel T-07 Excavator | -4/Factory | Z-intel M-36 Artificer | -4/Factory | Z-intel E-15 Imp | -4/Factory | Z-intel Fabricated ------------ Arm. Medium Treads | x2 | -7/Factory | Preloaded Hvy. Treads | x2 | -7/Factory Humpback | x1 | -6/Factory Humpback | x1 | -5/Factory Alien Tech Used ----------------- None Achievements -------------- Achiever Help From High Places Just Browsing Leap Before You Look Quick And Dirty Significant Disruption The One Challenges ------------ None Game ------ Seed BattleMakeshiftFirepult Manual? 0 Play Time 02:59:32 Cumulative 26.4 hours Start 2020.04.20 @ 20:30:14 End 2020.04.21 @ 20:59:26 Sessions 3 Manual Loads 0 Difficulty Adventurer Special Mode None Game No. 7 Rogue 2 Adventurer 5 Explorer 0 Win Type - Total 0 Types 0/0/0/0/0/0/0 Lore% 15 Gallery% 25 Achievement% 26 Wizard Run 0 Options --------- ASCII 0 Keyboard 0 Movement Numpad Keybinds 0 Fullscreen 1 Font 18/SmallcapsGlow Map View 76x50 Tactical HUD 1 Map Filters NONE Filters NONE Steam 0 RUN: f5b16ad4-aabe-474f-9269-4a5a57162dfe